bitfinex/quotes_SOLUSD_20240829
["timestamp","ask_amount","ask_price","bid_price","bid_amount"]
[1724973659891,1.42314365,140.26,140.23,7.131]
[1724973660396,1.42314365,140.26,140.22,24.9595]
[1724973660906,8.55274365,140.26,140.22,24.9595]
[1724973661111,8.55274365,140.26,140.22,17.828]
[1724973661419,41.26718673,140.25,140.2,7.1322]
[1724973661602,1.42314365,140.24,140.2,7.1322]
[1724973662203,1.42314365,140.23,140.2,7.1322]
[1724973662723,1.42314365,140.23,140.19,24.9653]
[1724973665019,42.69153038,140.23,140.19,17.8322]
[1724973665224,7.1327,140.2,140.16,17.836]
[1724973665522,42.69343038,140.19,140.13,17.8403]
[1724973666098,1.42314365,140.18,140.13,17.8403]
[1724973666397,1.42314365,140.18,140.14,7.1356]
[1724973667522,1.42314365,140.18,140.15,7.1351]
[1724973667728,7.1327,140.2,140.15,7.1351]
[1724973668026,21.42314365,140.19,140.15,7.1351]
[1724973669716,62.69343038,140.19,140.14,7.1356]
[1724973670432,78.25283038,140.19,140.14,7.1356]
[1724973670724,71.11963038,140.19,140.13,17.8403]
[1724973670933,7.1337,140.18,140.13,24.9764]
[1724973671120,1.42314365,140.17,140.13,24.9764]
[1724973671424,34.13708673,140.15,140.1,7.1377]
[1724973671628,1.42314365,140.15,140.11,7.1371]
[1724973671831,1.42314365,140.15,140.09,17.8456]
[1724973672131,1.42314365,140.17,140.1,35.6881]
[1724973672330,1.42314365,140.17,140.14,17.8382]
[1724973674128,1.42314365,140.17,140.14,24.9738]
[1724973674326,1.42314365,140.17,140.12,7.1363]
[1724973674721,1.42314365,140.17,140.13,7.136]
[1724973676023,1.42314365,140.17,140.11,17.8428]
[1724973676024,1.42314365,140.17,140.14,7.1357]
[1724973676218,21.42314365,140.18,140.14,7.1357]
[1724973676518,1.42314365,140.17,140.14,7.1357]
[1724973676823,1.42314365,140.17,140.11,17.8428]
[1724973676824,35.56023038,140.17,140.11,17.8428]
[1724973677025,42.69453038,140.17,140.11,17.8428]
[1724973677239,42.69453038,140.17,140.12,7.1367]
[1724973677541,42.69453038,140.17,140.09,7.138]
[1724973677913,7.135,140.16,140.09,7.138]
[1724973678115,1.42314365,140.15,140.09,7.138]
[1724973679129,1.42314365,140.16,140.09,7.138]
[1724973680145,7.1366,140.13,140.08,24.9851]
[1724973680318,1.42314365,140.12,140.08,24.9851]
[1724973680519,1.42314365,140.14,140.08,24.9851]
[1724973681320,7.1363,140.13,140.08,24.9851]
[1724973681631,1.42314365,140.12,140.05,17.8504]
[1724973681949,7.1377,140.1,140.06,7.1396]
[1724973682320,7.1373,140.11,140.06,7.1396]
[1724973682526,1.42314365,140.1,140.06,7.1396]
[1724973684417,8.56084365,140.1,140.06,7.1396]
[1724973684621,7.1377,140.1,140.06,7.1396]
[1724973685749,7.1377,140.1,140.05,24.9905]
[1724973686430,8.56144365,140.09,140.05,17.8504]
[1724973686636,7.1388,140.08,140.04,23.8033]
[1724973688422,7.1384,140.09,140.04,23.8033]
[1724973690128,7.1398,140.06,140.02,17.854]
[1724973692946,7.1394,140.07,140.02,17.854]
[1724973693146,7.1389,140.08,140.03,7.1412]
[1724973693775,1.42314365,140.07,140.03,7.1412]
[1724973694091,8.56244365,140.07,140.02,24.9957]
[1724973695178,1.42314365,140.07,140.03,7.1412]
[1724973695345,8.56194365,140.08,140.03,7.1412]
[1724973695545,1.42314365,140.07,140.03,7.1412]
[1724973696145,8.56194365,140.08,140.03,7.1412]
[1724973696975,1.42314365,140.07,140.03,7.1412]
[1724973699448,8.56194365,140.08,140.03,7.1412]
[1724973700469,8.56104365,140.1,140.04,17.8514]
[1724973700770,1.42314365,140.13,140.1,7.1376]
[1724973700947,1.42314365,140.15,140.07,15.5518]
[1724973701149,1.42314365,140.15,140.08,17.8461]
[1724973701477,1.42314365,140.15,140.1,7.1376]
[1724973701975,35.56023038,140.14,140.08,17.8461]
[1724973702151,35.56023038,140.14,140.07,22.691]
[1724973702152,7.1368,140.12,140.07,22.691]
[1724973702469,8.56044365,140.11,140.07,7.1392]
[1724973702771,8.51269739,140.15,140.06,7.1397]
[1724973702772,1.42314365,140.1,140.06,7.1397]
[1724973703776,34.13708673,140.08,140.02,17.8541]
[1724973703971,35.56023038,140.08,140.02,17.8541]
[1724973704278,1.42314365,140.07,140.02,17.8541]
[1724973704661,1.42314365,140.07,140.03,7.1411]
[1724973705368,8.56224365,140.08,140.03,7.1411]
[1724973706258,1.42314365,140.09,140.04,1.42794032]
[1724973706456,28.56174365,140.09,140.04,8.56864032]
[1724973706759,7.1388,140.08,140.03,7.1412]
[1724973706968,1.42314365,140.07,140.03,7.1412]
[1724973708567,8.56194365,140.08,140.03,7.1412]
[1724973708878,8.56194365,140.08,140.02,17.8541]
[1724973708879,28.56144365,140.09,140.04,7.1406]
[1724973710772,7.139,140.08,140.03,7.1411]
[1724973710982,1.42314365,140.07,140.03,7.1411]
[1724973712278,1.42314365,140.07,140.03,8.12208175]
[1724973712574,8.56214365,140.08,140.04,0.98091169]
[1724973712779,28.56144365,140.09,140.04,8.12131169]
[1724973712984,8.56144365,140.09,140.05,7.1402]
[1724973719781,7.1391,140.08,140.04,17.8515]
[1724973719959,1.42314365,140.09,140.0,35.7118]
[1724973720158,15.7504,140.1,140.06,24.9881]
[1724973720384,17.17354365,140.1,140.06,24.9881]
[1724973720588,24.31124365,140.1,140.06,24.9881]
[1724973720796,24.31124365,140.1,140.06,17.8485]
[1724973721180,24.31124365,140.1,140.05,7.1403]
[1724973721181,7.1383,140.09,140.05,7.1403]
[1724973721496,1.42314365,140.08,140.05,7.1403]
[1724973721670,8.56184365,140.08,140.03,17.8527]
[1724973721874,1.42314365,140.07,140.03,24.9935]
[1724973722197,7.1408,140.04,139.99,17.8571]
[1724973723193,8.56344365,140.05,140.0,8.36025577]
[1724973723493,1.42314365,140.05,140.0,7.1423]
[1724973723696,21.42314365,140.05,140.0,7.1423]
[1724973724069,7.95784365,140.07,140.01,19.28296268]
[1724973724295,15.09734365,140.07,140.01,26.42486268]
[1724973724481,15.09734365,140.07,140.01,24.9966]
[1724973727999,13.74490798,140.06,140.01,24.9966]
[1724973728205,1.42314365,140.05,140.01,24.9966]
[1724973729068,1.42314365,140.05,140.01,17.8547]
[1724973729477,16.589,140.03,139.93,276.3861]
[1724973729680,15.16805163,140.02,139.96,7.1443]
[1724973731379,22.31015163,140.02,139.97,7.1443]
[1724973732699,7.1421,140.02,139.97,7.1443]
[1724973732902,7.1421,140.02,139.98,1.42846154]
[1724973733776,13.74490798,140.0,139.92,17.8671]
[1724973733985,13.74490798,139.97,139.92,25.0135]
[1724973734181,8.56814365,139.96,139.9,15.4568]
[1724973734402,22.31305163,139.96,139.9,22.6043]
[1724973736109,8.56814365,139.96,139.9,22.6043]
[1724973738110,7.81594365,140.01,139.91,1.42637336]
[1724973738291,1.42314365,140.02,139.98,7.1434]
[1724973738496,18.01214365,140.03,139.99,1.42848176]
[1724973738688,18.01214365,140.03,139.98,1.42848176]
[1724973739206,18.01214365,140.03,139.99,7.1433]
[1724973739407,18.01214365,140.03,139.99,8.57167971]
[1724973739798,18.01214365,140.03,139.99,7.1433]
[1724973740985,18.01214365,140.03,139.97,17.86]
[1724973742523,7.1422,140.02,139.97,25.0042]
[1724973742687,1.42314365,140.01,139.97,25.0042]
[1724973745592,8.56544365,140.01,139.97,25.0042]
[1724973745808,7.1423,140.01,139.97,25.0042]
[1724973746010,8.56544365,140.01,139.97,25.0042]
[1724973746319,8.56544365,140.01,139.97,17.86]
[1724973746923,1.42314365,140.0,139.97,17.86]
[1724973749789,8.56504365,140.02,139.97,25.0042]
[1724973749991,1.42314365,140.01,139.97,25.0042]
[1724973750192,6.5199,140.05,139.99,17.8573]
[1724973750428,6.5199,140.05,140.01,7.1419]
[1724973751025,1.42314365,140.04,140.01,7.1419]
[1724973753732,7.94304365,140.05,140.01,7.1419]
[1724973756031,1.42314365,140.05,140.01,7.1419]
[1724973757438,1.42314365,140.05,140.02,7.1417]
[1724973757623,8.56294365,140.06,140.02,7.1417]
[1724973757958,1.42314365,140.08,140.05,7.1402]
[1724973758244,8.56184365,140.09,140.05,8.5680901]
[1724973758450,8.56184365,140.09,140.04,7.1406]
[1724973759124,7.1387,140.09,140.04,7.1406]
[1724973759446,1.42314365,140.08,140.05,7.1402]
[1724973759648,8.56104365,140.1,140.06,7.1397]
[1724973759948,1.2427658,140.14,140.05,17.8498]
[1724973759949,1.42314365,140.14,140.05,17.8498]
[1724973760331,7.1371,140.12,140.05,17.8498]
[1724973760645,1.42314365,140.11,140.07,7.1391]
[1724973762543,8.56044365,140.11,140.07,7.1391]
[1724973762744,7.1388,140.08,140.04,7.1406]
[1724973763048,1.42314365,140.07,140.04,7.1406]
[1724973763619,8.56254365,140.07,140.02,17.8539]
[1724973763838,1.42314365,140.06,140.02,17.8539]
[1724973764749,8.56294365,140.06,140.02,17.8539]
[1724973764928,7.1403,140.05,139.99,34.3358]
[1724973765227,1.42314365,140.04,139.99,34.3358]
[1724973765848,1.42314365,140.04,139.99,17.8579]
[1724973766342,1.42314365,140.04,140.0,7.1427]
[1724973768052,7.1399,140.06,140.01,1.42836494]
[1724973768349,1.42314365,140.05,140.01,1.42836494]
[1724973768525,1.42314365,140.05,140.01,8.57056494]
[1724973769430,1.42314365,140.04,139.99,25.0012]
[1724973769653,34.41449797,140.02,139.97,7.1439]
[1724973770225,41.55639797,140.02,139.97,7.1439]
[1724973770752,8.56554365,140.01,139.96,34.4078]
[1724973771662,8.56554365,140.01,139.96,17.8615]
[1724973772455,8.56554365,140.01,139.96,25.0063]
[1724973774061,8.56554365,140.01,139.97,1.42865187]
[1724973775449,34.41449797,140.02,139.99,7.1433]
[1724973776344,35.83764162,140.06,140.0,1.42834525]
[1724973776547,27.1405,140.05,139.98,1.42819437]
[1724973776731,7.1409,140.04,140.0,24.999]
[1724973777959,7.1419,140.02,139.97,17.8605]
[1724973778449,7.1419,140.02,139.97,25.0044]
[1724973778660,41.55639797,140.02,139.97,25.0044]
[1724973779765,41.55639797,140.02,139.98,7.1437]
[1724973780451,34.41449797,140.02,139.98,7.1437]
[1724973780659,35.83764162,140.04,140.0,17.8569]
[1724973780874,7.1408,140.04,140.01,1.42825822]
[1724973781161,7.1404,140.05,140.01,1.42825822]
[1724973781959,7.1404,140.05,140.02,1.42818556]
[1724973782159,7.1404,140.05,140.01,1.42816489]
[1724973782340,7.1404,140.05,140.0,24.9993]
[1724973782539,8.56354365,140.05,140.0,24.9993]
[1724973784658,7.1404,140.05,140.0,24.9993]
[1724973786040,20.88644839,140.05,140.0,24.9993]
[1724973786948,1.42314365,140.08,139.98,15.8132]
[1724973786949,20.88744839,140.03,139.98,15.8132]
[1724973787538,13.74604839,140.03,139.95,22.9586]
[1724973787746,13.74604839,140.01,139.95,15.8132]
[1724973788457,13.74604839,140.01,139.96,17.8616]
[1724973788651,13.74604839,140.01,139.98,7.1437]
[1724973789153,13.74604839,140.01,139.98,17.8584]
[1724973789968,13.74604839,140.01,139.95,15.8132]
[1724973790262,13.74604839,140.01,139.96,45.12549]
[1724973791240,20.88844839,140.01,139.96,52.26989]
[1724973792571,13.74604839,139.99,139.95,7.1452]
[1724973792942,13.74604839,139.99,139.94,25.0101]
[1724973792943,20.88944839,139.99,139.94,25.0101]
[1724973794561,8.56724365,139.98,139.94,17.8644]
[1724973794750,13.74604839,139.97,139.94,17.8644]
[1724973794952,8.56844365,139.96,139.91,46.63139686]
[1724973795272,13.74604839,139.95,139.91,25.0154]
[1724973795772,13.74604839,139.95,139.92,1.42908116]
[1724973795773,20.89184839,139.95,139.92,1.42908116]
[1724973796255,13.74604839,139.95,139.92,1.42908116]
[1724973796645,13.74604839,139.95,139.92,8.57588116]
[1724973796867,8.56704365,139.98,139.93,8.55855314]
[1724973797059,15.1854,139.99,139.93,1.41225314]
[1724973797260,36.07524839,139.99,139.93,7.1463]
[1724973797667,13.74604839,139.97,139.93,7.1463]
[1724973799204,13.74604839,139.97,139.94,7.1456]
[1724973799549,13.74604839,139.95,139.87,15.0364]
[1724973799757,13.74604839,139.91,139.87,7.1494]
[1724973800153,20.89344839,139.91,139.86,25.0243]
[1724973800354,7.148,139.9,139.86,17.8744]
[1724973800865,8.57114365,139.9,139.86,17.8744]
[1724973801474,7.148,139.9,139.86,17.8744]
[1724973801782,13.74604839,139.91,139.86,17.8744]
[1724973802077,1.42314365,139.92,139.86,17.8744]
[1724973802288,7.147,139.92,139.87,53.57848364]
[1724973803061,7.147,139.92,139.88,7.1489]
[1724973803261,57.23392261,139.93,139.89,1.42946722]
[1724973803781,7.146,139.94,139.89,8.57786722]
[1724973803986,1.42314365,139.93,139.89,7.1484]
[1724973804358,8.56914365,139.94,139.89,7.1484]
[1724973806191,1.42314365,139.94,139.9,1.42935176]
[1724973806986,34.43402261,139.95,139.9,1.42935176]
[1724973807180,34.43402261,139.95,139.89,46.42921844]
[1724973807380,34.43402261,139.95,139.91,7.1472]
[1724973807583,41.57942261,139.95,139.9,7.1478]
[1724973808596,41.57942261,139.95,139.91,0.74060395]
[1724973808772,41.57942261,139.95,139.91,7.1473]
[1724973808978,8.56804365,139.96,139.92,7.88387617]
[1724973809291,8.56754365,139.97,139.93,1.42910362]
[1724973809497,7.1444,139.97,139.93,1.42910362]
[1724973809669,8.56754365,139.97,139.91,1.42906484]
[1724973809874,8.56754365,139.97,139.92,7.1468]
[1724973814805,7.1444,139.97,139.92,7.1468]
[1724973815102,34.43402261,139.98,139.93,1.42895273]
[1724973815309,7.1434,139.99,139.93,46.42895273]
[1724973816505,7.1434,139.99,139.95,7.1453]
[1724973820524,43.00016626,140.0,139.95,7.1453]
[1724973821413,43.00016626,140.0,139.95,8.57406696]
[1724973821622,8.56614365,140.0,139.95,8.57406696]
[1724973821923,8.56614365,140.0,139.95,7.1453]
[1724973822106,13.75721353,139.99,139.95,7.1453]
[1724973822610,20.90061353,139.99,139.95,7.1453]
[1724973826737,20.90061353,139.99,139.95,8.57407629]
[1724973832628,7.1429,140.0,139.96,8.57359063]
[1724973832923,6.98817011,140.02,139.96,17.8613]
[1724973832924,15.18035718,140.02,139.96,17.8613]
[1724973833428,1.42314365,140.02,139.96,17.8613]
[1724973833815,13.75721353,140.02,139.96,17.8613]
[1724973834405,20.89911353,140.02,139.96,17.8613]
[1724973835031,20.89911353,140.02,139.97,0.78487901]
[1724973835333,20.89911353,140.02,139.97,7.92907901]
[1724973839241,13.75721353,140.02,139.98,17.8591]
[1724973839431,22.32125718,140.04,139.99,0.79605504]
[1724973840236,15.18035718,140.04,140.0,7.1425]
[1724973840442,22.32115718,140.04,140.0,7.1425]
[1724973840628,22.32115718,140.04,139.99,7.1432]
[1724973841529,7.1413,140.03,139.99,7.1432]
[1724973841727,1.42314365,140.02,139.99,7.1432]
[1724973843546,7.1407,140.05,140.0,7.1428]
[1724973843719,20.0,140.04,140.0,7.1428]
[1724973844432,15.18035718,140.06,140.01,7.1423]
[1724973845321,15.18035718,140.06,140.02,1.42816593]
[1724973845727,15.18035718,140.06,140.01,7.1423]
[1724973846818,8.56284365,140.07,140.02,7.1417]
[1724973847020,7.1397,140.07,140.02,7.1417]
[1724973847536,8.56284365,140.07,140.02,7.1417]
[1724973849017,13.75721353,140.06,140.02,7.1417]
[1724973849213,20.98179624,140.11,140.02,7.1417]
[1724973849214,7.1386,140.09,140.04,7.1406]
[1724973849418,15.18035718,140.08,140.04,7.1406]
[1724973850429,13.75721353,140.08,140.04,7.1406]
[1724973850645,7.1378,140.1,140.05,8.5680494]
[1724973850953,13.75721353,140.08,140.05,7.1402]
[1724973853229,13.75721353,140.08,140.06,7.1397]
[1724973853552,15.18035718,140.1,140.06,7.1397]
[1724973853732,8.55944365,140.13,140.06,17.8487]
[1724973853927,13.75721353,140.12,140.06,17.8487]
[1724973854126,13.75721353,140.12,140.07,45.12549]
[1724973854350,1.42314365,140.11,140.06,17.8487]
[1724973855351,1.42314365,140.11,140.08,7.1387]
[1724973856958,20.89391353,140.12,140.08,7.1387]
[1724973857250,1.42314365,140.11,140.08,7.1387]
[1724973857449,13.75721353,140.12,140.08,7.1387]
[1724973857652,15.18035718,140.12,140.08,7.1387]
[1724973858021,13.75721353,140.12,140.08,17.8463]
[1724973858220,13.75721353,140.13,140.1,7.1377]
[1724973859535,13.75721353,140.13,140.11,7.1371]
[1724973862050,8.55834365,140.15,140.11,7.1371]
[1724973862239,13.75721353,140.15,140.12,7.1367]
[1724973863534,7.1347,140.16,140.12,7.1367]
[1724973863735,20.89191353,140.16,140.12,7.1367]
[1724973863957,7.1343,140.17,140.12,7.1367]
[1724973864156,35.18035718,140.16,140.12,7.1367]
[1724973864730,33.75721353,140.16,140.12,7.1367]
[1724973865131,40.89191353,140.16,140.12,7.1367]
[1724973866857,13.75721353,140.14,140.1,17.8437]
[1724973867037,1.42314365,140.13,140.1,17.8437]
[1724973867237,1.42314365,140.13,140.1,24.9814]
[1724973870060,15.18035718,140.14,140.1,24.9814]
[1724973870557,13.75721353,140.14,140.1,24.9814]
[1724973873649,8.55874365,140.15,140.11,7.1372]
[1724973873961,13.75721353,140.14,140.11,7.1372]
[1724973874762,40.89191353,140.16,140.12,7.1367]
[1724973878049,27.1347,140.16,140.12,7.1367]
[1724973878255,40.89191353,140.16,140.12,7.1367]
[1724973879867,13.75721353,140.14,140.1,24.9811]
[1724973882981,13.75721353,140.14,140.11,7.137]
[1724973883151,13.75721353,140.14,140.12,7.1364]
[1724973884183,13.75721353,140.16,140.12,7.1364]
[1724973885053,7.1337,140.18,140.13,7.1358]
[1724973885258,13.75721353,140.16,140.13,7.1358]
[1724973886180,13.75721353,140.16,140.1,15.1691]
[1724973886356,20.89311353,140.14,140.1,15.1691]
[1724973887375,13.75721353,140.12,140.09,24.983]
[1724973891271,13.75721353,140.14,140.09,17.8448]
[1724973891470,20.89191353,140.16,140.1,45.0]
[1724973892280,13.75721353,140.16,140.11,17.8418]
[1724973892794,13.00253702,140.16,140.11,17.8418]
[1724973892990,13.00253702,140.16,140.13,7.1357]
[1724973893373,8.55744365,140.17,140.13,7.1357]
[1724973893687,22.31465718,140.17,140.13,7.1357]
[1724973894179,22.31465718,140.17,140.12,7.1366]
[1724973894391,7.1351,140.16,140.11,17.8418]
[1724973894775,22.31465718,140.17,140.12,7.1366]
[1724973896387,13.75721353,140.15,140.11,17.8418]
[1724973898381,13.75721353,140.15,140.12,7.1365]
[1724973901295,13.75721353,140.15,140.11,24.9789]
[1724973902492,1.42314365,140.14,140.1,45.0]
[1724973902662,13.75721353,140.13,140.09,45.0]
[1724973902862,13.75721353,140.13,140.1,7.1376]
[1724973903678,7.1383,140.09,140.05,17.8502]
[1724973903988,70.24715412,140.14,140.02,15.7261]
[1724973903989,13.75721353,140.07,140.02,17.8541]
[1724973904192,13.75721353,140.05,140.02,17.8541]
[1724973905290,13.75721353,140.05,139.99,33.5842]
[1724973905291,13.75721353,140.03,139.99,33.5842]
[1724973905670,13.75721353,140.03,140.0,3.32062321]
[1724973905887,13.75721353,140.03,140.01,7.1422]
[1724973906097,13.75721353,140.05,140.02,1.42820569]
[1724973907693,7.1393,140.07,140.02,7.1417]
[1724973908002,13.75721353,140.07,140.02,7.1417]
[1724973908179,1.42314365,140.08,140.01,17.8549]
[1724973908499,13.75721353,140.07,140.02,45.12549]
[1724973908793,1.42314365,140.06,140.01,17.8549]
[1724973908991,13.75721353,140.05,140.03,7.1412]
[1724973909797,13.75721353,140.05,140.02,7.1417]
[1724973914177,13.75721353,140.05,140.03,7.1413]
[1724973917001,8.56244365,140.07,140.03,7.1413]
[1724973917186,13.75721353,140.06,140.03,7.1413]
[1724973917588,13.75721353,140.04,140.01,17.8549]
[1724973918472,13.75721353,140.04,140.01,24.997]
[1724973920200,13.75721353,140.04,140.02,7.1417]
[1724973920405,1.42314365,140.06,140.02,7.1417]
[1724973920574,13.75721353,140.05,140.02,7.1417]
[1724973921094,13.75721353,140.05,140.03,7.141]
[1724973921291,1.42314365,140.07,140.04,7.1408]
[1724973921481,20.0,140.08,140.04,7.1408]
[1724973921482,1.42314365,140.08,140.04,7.1408]
[1724973921681,13.75721353,140.07,140.04,8.56870484]
[1724973922081,13.75721353,140.07,140.04,7.1408]
[1724973927201,22.3566,140.09,140.05,7.1403]
[1724973927202,15.2183,140.09,140.05,7.1403]
[1724973927502,13.75721353,140.07,140.06,7.1397]
[1724973928004,13.75721353,140.07,140.05,24.9896]
[1724973928577,23.77964365,140.09,140.05,24.9896]
[1724973928777,13.75721353,140.06,140.05,24.9896]
[1724973932085,20.89701353,140.06,140.01,7.1421]
[1724973932292,13.75721353,140.03,140.02,7.1417]
[1724973932693,13.75721353,140.05,140.02,7.1417]
[1724973938512,13.75721353,140.03,140.01,24.9969]
[1724973939521,13.75721353,140.03,140.01,17.855]
[1724973940015,1.42314365,140.04,140.01,17.855]
[1724973940210,13.75721353,140.03,140.01,17.855]
[1724973948120,1.42314365,140.06,140.02,8.57005274]
[1724973948296,13.75721353,140.05,140.02,8.57005274]
[1724973948714,13.75721353,140.05,140.02,7.1418]
[1724973949225,13.75721353,140.04,140.02,7.1418]
[1724973950120,13.75721353,140.04,140.03,7.1413]
[1724973950428,13.75721353,140.05,140.03,7.1413]
[1724973950800,13.75721353,140.05,140.02,7.1416]
[1724973951002,1.42314365,140.06,140.03,17.8528]
[1724973951213,13.75721353,140.04,140.03,17.8528]
[1724973959520,13.75721353,140.04,140.03,24.9941]
[1724973959832,13.75721353,140.06,140.03,17.8528]
[1724973960734,13.75721353,140.04,140.03,24.9939]
[1724973970525,13.75721353,140.04,140.0,17.8563]
[1724973970734,13.75721353,140.02,140.0,24.9987]
[1724973970907,1.42314365,140.01,139.97,17.8602]
[1724973971112,13.75721353,139.99,139.97,25.0041]
[1724973973542,13.75721353,139.99,139.95,7.1454]
[1724973973714,13.75721353,139.97,139.95,7.1454]
[1724973974222,1.42314365,139.96,139.92,7.1465]
[1724973974423,13.75721353,139.93,139.92,7.1465]
[1724973974848,13.75721353,139.93,139.91,25.0158]
[1724973975713,8.56814365,139.96,139.91,25.0158]
[1724973975923,13.75721353,139.92,139.91,25.0158]
[1724973979541,13.75721353,139.92,139.91,17.8684]
[1724973985068,15.18035718,139.94,139.91,25.0158]
[1724973985358,13.75721353,139.94,139.91,25.0158]
[1724973989053,13.75721353,139.92,139.88,17.8722]
[1724973989240,13.75721353,139.9,139.89,7.1484]
[1724973989832,1.42314365,139.93,139.88,17.8722]
[1724973990030,13.75721353,139.92,139.88,17.8722]
[1724973990449,13.75721353,139.92,139.9,7.1479]
[1724973991757,1.42314365,139.94,139.9,7.1479]
[1724973992259,13.75721353,139.92,139.9,7.1479]
[1724973992867,1.42314365,139.94,139.9,7.1479]
[1724973993069,13.75721353,139.93,139.91,7.1474]
[1724973993841,1.42314365,139.94,139.91,7.1474]
[1724973994042,13.75721353,139.93,139.91,7.1474]
[1724973997361,1.42314365,139.95,139.91,7.1474]
[1724973997549,13.75721353,139.93,139.91,7.1474]
[1724974001668,13.75721353,139.93,139.9,25.0171]
[1724974001900,13.75721353,139.91,139.9,25.0171]
[1724974005780,1.42314365,139.96,139.9,17.8693]
[1724974006071,13.75721353,139.96,139.94,7.1458]
[1724974006262,13.75721353,139.96,139.93,7.1463]
[1724974006474,13.75721353,139.94,139.89,17.8705]
[1724974006650,72.88645412,140.0,139.89,17.8705]
[1724974006651,13.75721353,139.92,139.89,17.8705]
[1724974008256,1.42314365,139.91,139.89,25.0189]
[1724974009270,1.42314365,139.91,139.87,15.3519]
[1724974009271,13.75721353,139.9,139.87,15.3519]
[1724974009476,13.75721353,139.9,139.88,7.1489]
[1724974011372,13.75721353,139.9,139.86,17.8744]
[1724974011552,13.75721353,139.88,139.84,7.151]
[1724974011754,13.75721353,139.88,139.83,17.8786]
[1724974011755,13.75721353,139.85,139.83,25.0301]
[1724974013275,1.42314365,139.87,139.84,7.151]
[1724974013455,21.728,139.91,139.86,7.1499]
[1724974013456,1.42314365,139.9,139.86,7.1499]
[1724974013656,13.75721353,139.88,139.85,7.1504]
[1724974014385,1.42314365,139.87,139.85,7.1504]
[1724974014677,13.75721353,139.88,139.85,7.1504]
[1724974014976,1.42314365,139.89,139.87,7.1492]
[1724974015179,13.75721353,139.88,139.86,7.1499]
[1724974017081,13.75721353,139.88,139.85,25.0256]
[1724974020359,13.75721353,139.88,139.86,7.1496]
[1724974022884,13.75721353,139.88,139.87,7.1494]
[1724974023581,13.75721353,139.89,139.87,7.1494]
[1724974026907,1.42314365,139.91,139.89,7.1484]
[1724974027066,28.56954365,139.93,139.89,7.1484]
[1724974027265,13.75721353,139.9,139.88,7.1488]
[1724974027478,1.42314365,139.89,139.87,17.873]
[1724974027671,13.75721353,139.88,139.87,17.873]
[1724974028077,13.75721353,139.88,139.84,17.8771]
[1724974028277,13.75721353,139.86,139.85,7.1504]
[1724974031921,13.75721353,139.86,139.84,17.8771]
[1724974031922,13.75721353,139.86,139.84,25.0281]
[1724974032393,30.80134365,139.85,139.8,25.0347]
[1724974032595,13.75721353,139.83,139.8,17.8818]
[1724974032798,1.42314365,139.82,139.8,17.8818]
[1724974033199,13.75721353,139.83,139.8,17.8818]
[1724974033200,15.18035718,139.83,139.8,17.8818]
[1724974033376,15.18035718,139.83,139.8,25.0348]
[1724974033377,1.42314365,139.82,139.8,25.0348]
[1724974033980,15.18035718,139.83,139.8,25.0348]
[1724974034605,15.18035718,139.83,139.8,17.8818]
[1724974034776,13.75721353,139.83,139.81,7.1524]
[1724974035487,13.75721353,139.83,139.82,7.152]
[1724974035693,13.75721353,139.83,139.81,7.1524]
[1724974036188,1.42314365,139.82,139.81,7.1524]
[1724974037406,1.42314365,139.82,139.8,25.0347]
[1724974039447,13.75721353,139.83,139.81,7.1525]
[1724974042302,1.42314365,139.84,139.82,7.152]
[1724974042607,13.75721353,139.86,139.83,7.1515]
[1724974042813,1.42314365,139.85,139.83,7.1515]
[1724974048298,1.42314365,139.85,139.82,17.8795]
[1724974049412,1.42314365,139.85,139.83,7.1513]
[1724974050927,1.42314365,139.85,139.84,7.151]
[1724974051131,13.1969,139.88,139.84,7.151]
[1724974051132,1.42314365,139.87,139.85,7.1501]
[1724974051297,15.18035718,139.88,139.85,7.1501]
[1724974054907,15.18035718,139.88,139.86,7.1499]
[1724974055313,1.42314365,139.91,139.89,7.1484]
[1724974056509,1.42314365,139.92,139.89,7.1484]
[1724974058222,1.42314365,139.92,139.9,7.1478]
[1724974058432,15.18035718,139.93,139.91,7.1474]
[1724974058939,1.42314365,139.94,139.92,7.1468]
[1724974059243,1.42314365,139.96,139.92,17.8666]
[1724974059409,1.42314365,139.95,139.92,17.8666]
[1724974060436,1.42314365,139.95,139.94,7.1459]